bitfinex/quotes_ETHUSD_20260214
["timestamp","ask_amount","ask_price","bid_price","bid_amount"]
[1771060490221,0.0011,2081.5,2081.1,0.85955601]
[1771060490423,1.20215764,2081.5,2081.1,0.85955601]
[1771060490802,0.0011,2081.5,2081.1,0.85955601]
[1771060491820,0.0011,2081.5,2081.2,0.85955601]
[1771060492004,0.0011,2081.5,2081.4,0.85955601]
[1771060493624,0.0011,2081.5,2081.3,13.85708175]
[1771060493798,0.0011,2081.5,2081.2,1.20118657]
[1771060494122,0.0011,2081.5,2080.9,2.464]
[1771060494123,0.0011,2081.5,2080.8,5.02143076]
[1771060494423,0.86887928,2081.5,2080.8,1.20143076]
[1771060495427,0.86887928,2081.5,2080.8,2.06098677]
[1771060495724,1.20111463,2081.4,2080.8,2.06098677]
[1771060500236,4.80538087,2081.5,2080.8,2.06098677]
[1771060500420,0.86777928,2081.4,2080.6,8.34850894]
[1771060501002,0.86777928,2081.4,2081.0,0.0034]
[1771060502507,1.20117234,2081.3,2081.0,0.0034]
[1771060502718,1.9957347,2081.3,2081.0,0.0034]
[1771060503019,0.79456236,2081.2,2081.0,0.0034]
[1771060503202,0.79456236,2081.2,2080.5,2.02402978]
[1771060503406,0.79456236,2081.0,2080.5,0.001]
[1771060504036,2.149,2081.1,2080.6,0.82140507]
[1771060504244,2.149,2081.1,2080.5,1.20262839]
[1771060504245,1.45465634,2081.5,2080.8,0.82140507]
[1771060504445,0.25355933,2081.5,2080.9,12.99752574]
[1771060504646,1.45462085,2081.5,2081.1,0.82140507]
[1771060504844,0.0026,2081.5,2081.1,0.82140507]
[1771060505851,0.0026,2081.5,2081.0,1.20132091]
[1771060506841,1.20366499,2081.5,2080.9,15.02029537]
[1771060507132,1.20366499,2081.5,2080.9,2.02280346]
[1771060508113,1.20366499,2081.5,2080.9,0.82140507]
[1771060508327,1.20366499,2081.5,2080.9,2.02280125]
[1771060511638,0.0026,2081.5,2081.0,0.82140507]
[1771060511845,0.0026,2081.5,2081.2,0.82140507]
[1771060512348,0.0026,2081.5,2081.1,1.20128778]
[1771060512711,0.0011,2081.7,2081.4,0.82140507]
[1771060513925,0.0011,2081.7,2081.6,0.82140507]
[1771060514345,0.0011,2082.1,2081.6,0.82140507]
[1771060516013,0.0011,2082.1,2081.8,0.82140507]
[1771060516839,0.2358993,2082.0,2081.6,0.82140507]
[1771060517159,0.2358993,2082.0,2081.6,2.02240081]
[1771060518941,0.2358993,2082.0,2081.6,1.20099574]
[1771060519130,0.2358993,2082.0,2081.6,2.02240081]
[1771060520147,0.2358993,2082.0,2081.7,0.82140507]
[1771060520861,0.2358993,2082.0,2081.7,2.02233785]
[1771060521243,0.2358993,2082.0,2081.7,0.82140507]
[1771060524571,0.2358993,2082.0,2081.6,1.20097372]
[1771060524774,0.2358993,2082.0,2081.7,0.82140507]
[1771060525266,1.4366953,2082.0,2081.5,0.82140507]
[1771060526154,1.4366953,2082.0,2081.5,2.02245321]
[1771060527081,0.2358993,2082.0,2081.6,0.82140507]
[1771060528482,0.2358993,2082.0,2081.8,0.82140507]
[1771060529576,2.23123853,2082.0,2081.4,2.02350618]
[1771060529748,2.23123853,2082.0,2081.4,0.82240507]
[1771060529942,2.23123853,2082.0,2081.4,0.001]
[1771060530384,2.23123853,2082.0,2081.4,1.20210565]
[1771060530678,2.23123853,2082.0,2081.4,2.02351072]
[1771060530858,2.23123853,2082.0,2081.4,2.0235173]
[1771060531180,4.38023853,2082.0,2081.4,2.0235173]
[1771060531477,4.38023853,2082.0,2081.4,0.82240507]
[1771060531772,4.38023853,2082.0,2081.4,2.02351878]
[1771060532078,4.38023853,2082.0,2081.4,0.82240507]
[1771060532391,4.38023853,2082.0,2081.4,0.001]
[1771060532392,0.77918484,2081.7,2081.4,0.001]
[1771060532554,0.77918484,2081.5,2080.8,5.76866979]
[1771060533476,12.99752574,2081.6,2080.9,0.74723248]
[1771060533477,1.20111463,2081.4,2080.9,0.74723248]
[1771060535875,5.5834393,2081.5,2080.8,1.20143731]
[1771060536254,0.77918484,2081.4,2080.7,2.465]
[1771060536580,0.77918484,2081.4,2080.7,3.66651824]
[1771060538380,1.20117234,2081.3,2080.7,3.66651824]
[1771060539156,0.77918484,2081.2,2080.5,1.20251824]
[1771060539354,2.93118484,2081.1,2080.5,1.20251824]
[1771060539554,2.93118484,2081.1,2080.6,0.001]
[1771060540249,0.80041649,2081.0,2080.6,0.001]
[1771060540552,1.20138173,2081.0,2080.6,1.1130736]
[1771060541069,0.80041649,2080.9,2080.6,0.001]
[1771060541385,0.80041649,2080.9,2080.4,0.001]
[1771060541677,0.80041649,2080.9,2080.4,1.1130736]
[1771060542081,0.80041649,2080.9,2080.3,0.001]
[1771060542583,0.80041649,2080.7,2080.3,0.001]
[1771060543266,0.80041649,2080.7,2080.2,0.001]
[1771060544597,0.80041649,2080.5,2080.2,0.001]
[1771060544799,1.20157646,2080.6,2080.1,0.001]
[1771060544800,2.95441649,2080.4,2080.1,0.001]
[1771060544953,0.80041649,2080.3,2080.1,0.001]
[1771060545148,0.24902912,2079.7,2079.5,1.61523321]
[1771060546167,0.24902912,2079.7,2079.6,0.74900828]
[1771060546372,0.1897963,2079.7,2079.6,0.74900828]
[1771060546575,0.1897963,2079.7,2079.5,0.86622493]
[1771060547362,0.1897963,2079.7,2079.6,0.74900828]
[1771060548388,0.1897963,2079.7,2079.5,0.86622493]
[1771060549189,0.1897963,2079.7,2079.5,1.61523321]
[1771060549558,0.1897963,2079.7,2079.5,0.86622493]
[1771060549760,0.1897963,2079.7,2079.5,2.06843338]
[1771060550786,1.20192876,2080.0,2079.5,2.06843338]
[1771060550992,1.20192876,2080.0,2079.5,0.86622493]
[1771060551190,1.20192876,2080.0,2079.5,0.67642863]
[1771060551687,2.00234525,2080.0,2079.5,0.67642863]
[1771060552771,4.80701327,2080.3,2079.6,0.74900828]
[1771060552772,5.60749433,2080.3,2079.6,0.74900828]
[1771060553993,0.80041649,2080.2,2079.5,0.67642863]
[1771060554290,0.80041649,2080.2,2079.5,1.42543691]
[1771060554462,0.80041649,2080.2,2079.5,2.62764289]
[1771060555395,4.80707784,2080.3,2079.6,0.74900828]
[1771060555687,1.20172527,2080.4,2079.6,0.74900828]
[1771060556391,3.35362313,2080.6,2079.6,0.74900828]
[1771060556761,3.35362313,2080.6,2079.7,0.74900828]
[1771060557194,4.15403962,2080.6,2079.7,0.74900828]
[1771060557393,2.00210847,2080.4,2079.7,1.95110084]
[1771060557693,0.80041649,2080.3,2079.5,5.69863523]
[1771060557986,0.80041649,2080.3,2079.5,5.70163523]
[1771060559095,0.80041649,2080.3,2079.5,5.70163744]
[1771060560500,2.002224,2080.2,2079.5,4.49942863]
[1771060560671,2.002224,2080.2,2079.5,5.70163545]
[1771060560991,1.20179269,2080.3,2079.6,0.74900828]
[1771060561384,0.78592298,2080.2,2079.5,5.70163888]
[1771060561969,1.20179269,2080.3,2079.6,0.78582967]
[1771060562471,1.98771567,2080.3,2079.6,0.78582967]
[1771060562871,1.98771567,2080.3,2079.6,1.98798126]
[1771060563371,1.20179269,2080.3,2079.6,1.98796018]
[1771060563575,1.20179269,2080.3,2079.7,0.78582967]
[1771060563797,1.20179269,2080.3,2079.5,2.66743527]
[1771060564101,1.98771567,2080.3,2079.5,2.66743527]
[1771060565032,1.20179269,2080.3,2079.6,0.78582967]
[1771060565498,0.78592298,2080.2,2079.5,0.67942863]
[1771060565695,0.78592298,2080.2,2079.5,1.88164005]
[1771060565904,1.20179269,2080.3,2079.6,0.78582967]
[1771060567200,4.80684716,2080.4,2079.7,1.98792612]
[1771060567404,4.80684716,2080.4,2079.7,0.78582967]
[1771060569107,5.59277014,2080.4,2079.7,0.78582967]
[1771060573111,5.59277014,2080.4,2080.0,0.003]
[1771060573411,5.59277014,2080.4,2079.7,0.78582967]
[1771060574109,0.78592298,2080.3,2079.7,0.78582967]
[1771060574292,0.78592298,2080.3,2079.5,1.87859952]
[1771060574293,4.80684716,2080.4,2079.6,0.78582967]
[1771060574978,1.98761496,2080.4,2079.6,0.78582967]
[1771060576312,1.98761496,2080.4,2079.7,1.98792612]
[1771060576991,13.01734824,2080.2,2079.7,1.98792612]
[1771060577915,13.01734824,2080.2,2079.7,0.78582967]
[1771060578082,13.01734824,2080.2,2079.6,1.20212198]
[1771060578284,13.01734824,2080.0,2079.5,2.66446479]
[1771060578587,13.01734824,2080.0,2079.6,0.78582967]
[1771060579411,15.16834824,2080.5,2079.6,0.78582967]
[1771060579611,13.01734824,2080.4,2079.6,0.78582967]
[1771060580416,13.01734824,2080.4,2079.8,0.78582967]
[1771060580911,14.21904297,2080.4,2079.8,0.78582967]
[1771060581116,13.01734824,2080.4,2079.8,0.78582967]
[1771060583016,13.01734824,2080.4,2080.0,0.78582967]
[1771060583906,0.0011,2080.6,2080.0,0.78582967]
[1771060584105,0.0011,2080.6,2080.1,0.78582967]
[1771060585290,0.0011,2080.6,2080.3,0.78582967]
[1771060587620,0.0011,2080.7,2080.2,0.78582967]
[1771060587621,13.01844824,2080.7,2080.2,0.78582967]
[1771060588218,13.01734824,2080.5,2080.0,1.98770751]
[1771060588416,13.01734824,2080.3,2079.8,0.78582967]
[1771060589923,14.21913299,2080.3,2079.8,0.78582967]
[1771060590937,14.97389966,2080.3,2079.7,3.82]
[1771060591093,13.01734824,2080.1,2079.6,1.98797684]
[1771060591293,16.38813299,2080.3,2079.7,0.71839536]
[1771060592996,2.169,2080.3,2079.8,0.71839536]
[1771060593213,3.37075449,2080.3,2079.8,0.71839536]
[1771060593419,2.169,2080.3,2079.8,0.71839536]
[1771060594230,2.169,2080.3,2079.8,1.92039104]
[1771060594903,2.169,2080.3,2079.9,0.71839536]
[1771060595221,16.64696295,2080.7,2079.9,0.71839536]
[1771060596421,16.64696295,2080.7,2080.1,0.71839536]
[1771060596807,17.36340218,2080.7,2079.9,1.2019433]
[1771060597007,17.36340218,2080.7,2080.0,0.71839536]
[1771060597724,16.64696295,2080.7,2080.0,0.71839536]
[1771060598701,16.64696295,2080.7,2080.1,0.71839536]
[1771060598902,17.36340218,2080.7,2080.0,1.2019135]
[1771060599226,17.36340218,2080.7,2079.9,0.71839536]
[1771060599227,13.01734824,2080.5,2079.9,0.71839536]
[1771060599531,3.62961471,2080.7,2080.0,0.71839536]
[1771060599532,16.64696295,2080.7,2080.0,0.71839536]
[1771060600042,17.34199063,2080.7,2080.0,0.71839536]
[1771060602228,17.34199063,2080.7,2080.0,1.92031613]
[1771060602431,17.34199063,2080.7,2080.0,1.92031445]
[1771060602834,17.34199063,2080.7,2080.0,0.71839536]
[1771060603132,17.34199063,2080.7,2079.9,1.20193421]
[1771060603133,13.01734824,2080.5,2079.9,1.20193421]
[1771060604211,2.192,2080.4,2079.8,0.74182331]
[1771060605120,2.88702768,2080.4,2079.8,0.74182331]
[1771060605304,2.192,2080.4,2079.8,0.74182331]
[1771060609638,14.21909798,2080.3,2079.8,0.74182331]
[1771060609937,14.91412566,2080.3,2079.6,4.56282331]
[1771060610115,13.71237592,2080.1,2079.6,1.20315252]
[1771060610315,14.91412566,2080.3,2079.6,1.20315252]
[1771060610637,14.91412566,2080.3,2079.7,0.74182331]
[1771060610938,14.21838311,2080.3,2079.7,0.74182331]
[1771060611748,14.21838311,2080.3,2079.8,1.20203865]
[1771060614646,14.21838311,2080.3,2079.7,0.74182331]
[1771060614827,14.21838311,2080.3,2079.7,1.94391462]
[1771060615027,14.21838311,2080.3,2079.7,0.74182331]
[1771060615227,13.01663337,2080.1,2079.6,0.001]
[1771060615433,3.39373728,2080.4,2079.7,0.74182331]
[1771060615816,2.192,2080.4,2079.7,0.74182331]
[1771060617125,2.192,2080.4,2079.9,0.74182331]
[1771060619237,2.192,2080.4,2080.0,1.20192307]
[1771060619546,2.192,2080.4,2080.1,0.74182331]
[1771060620244,16.68426486,2080.7,2080.1,0.74182331]
[1771060621552,0.25207098,2080.7,2080.2,0.66881362]
[1771060621938,0.0011,2080.7,2080.2,0.66881362]
[1771060622135,14.21925256,2080.7,2080.1,1.20181916]
[1771060622461,14.87369966,2080.7,2080.0,1.87070374]
[1771060622959,0.0011,2080.7,2080.1,0.66881362]
[1771060623636,0.0011,2080.7,2080.2,1.87062113]
[1771060624433,0.0011,2080.7,2080.3,0.66881362]
[1771060626061,0.0011,2080.7,2080.3,1.87051539]
[1771060626232,0.0011,2080.7,2080.4,0.66881362]
[1771060627658,0.0011,2080.9,2080.4,0.66881362]
[1771060628462,0.0011,2080.9,2080.6,0.66881362]
[1771060629972,0.0011,2080.9,2080.6,2.465]
[1771060630170,0.0011,2080.9,2080.1,1.87067891]
[1771060630339,0.0011,2080.9,2080.4,1.20169198]
[1771060630539,0.0011,2080.9,2080.3,4.33552862]
[1771060630741,13.67108047,2080.8,2080.3,2.465]
[1771060630960,0.6544471,2080.8,2080.3,3.66673483]
[1771060631241,0.0011,2080.9,2080.3,4.33554845]
[1771060631441,0.0011,2080.9,2080.4,0.66881362]
[1771060633853,0.0011,2080.9,2080.5,1.87044784]
[1771060637074,0.0011,2080.9,2080.5,1.20163422]
[1771060637779,0.65094425,2080.9,2080.4,1.20168828]
[1771060640662,0.0011,2080.9,2080.4,1.20168828]
[1771060641374,0.0011,2080.9,2080.4,1.8705019]
[1771060643860,0.6390084,2080.9,2080.4,1.20168828]
[1771060644456,0.6390084,2080.9,2080.3,3.13381362]
[1771060644656,1.20146097,2080.8,2080.3,3.66674969]
[1771060644975,1.83740489,2080.8,2080.3,3.66674969]
[1771060645362,1.83740489,2080.8,2080.2,1.20176817]
[1771060647183,0.63203743,2080.7,2080.2,1.20176817]
[1771060647488,0.63203743,2080.7,2080.1,4.33563268]
[1771060647673,0.63203743,2080.7,2080.2,3.82]
[1771060648587,0.63203743,2080.7,2080.1,3.66681906]
[1771060649489,14.84435639,2080.8,2080.2,0.66881362]
[1771060649788,14.84435639,2080.8,2080.1,4.33563268]
[1771060650089,0.62623787,2080.7,2080.1,4.33563268]
[1771060651493,1.20157646,2080.6,2080.1,4.33563268]
[1771060651665,1.82779501,2080.7,2080.1,4.33563268]
[1771060652064,1.82779501,2080.7,2080.1,3.66686425]
[1771060652462,1.72779501,2080.7,2080.1,3.66686425]
[1771060652779,0.52028872,2080.5,2080.1,2.465]
[1771060653295,0.52028872,2080.3,2080.0,0.001]
[1771060654295,14.21837764,2080.4,2080.0,0.001]
[1771060654461,14.73799445,2080.4,2080.0,0.001]
[1771060656372,0.51779397,2080.3,2080.0,0.001]
[1771060657292,13.01663337,2080.2,2080.0,0.001]
[1771060657997,15.77980663,2080.2,2080.0,0.001]
[1771060658395,15.77980663,2080.2,2079.8,0.001]
[1771060658396,0.0011,2080.9,2079.9,13.6610942]
[1771060658571,2.253,2080.8,2080.0,0.64446083]
[1771060658761,2.50403882,2080.8,2080.0,0.64446083]
[1771060658969,2.253,2080.8,2080.0,0.64446083]
[1771060659204,15.78200147,2080.8,2080.0,0.64446083]
[1771060659593,15.26963337,2080.8,2080.0,0.64446083]
[1771060659986,2.253,2080.8,2080.0,0.64446083]
[1771060660586,3.45446509,2080.8,2080.2,0.67473565]
[1771060661286,0.50863208,2080.6,2080.0,1.87662572]
[1771060661808,13.01663337,2080.7,2080.0,1.87662572]
[1771060661996,13.01663337,2080.7,2080.0,1.20189007]
[1771060662204,3.96131032,2080.8,2079.8,1.20300339]
[1771060662205,13.01663337,2080.3,2079.8,1.20300339]
[1771060662513,1.70857104,2080.4,2079.8,1.20300339]
[1771060662711,20.07820507,2080.5,2079.9,0.67473565]
[1771060662712,16.47329669,2080.5,2079.9,0.67473565]
[1771060664006,16.47329669,2080.5,2079.8,1.20300339]
[1771060664193,0.50329179,2080.4,2079.8,0.001]
[1771060664709,14.71990633,2080.3,2079.8,0.001]
[1771060665275,0.50152322,2080.2,2079.8,0.001]
[1771060666815,1.20186529,2080.1,2079.8,0.001]
[1771060668112,1.20185145,2080.2,2079.8,0.001]
[1771060668615,1.20185145,2080.2,2079.8,0.67573565]
[1771060668813,4.8068704,2080.4,2079.8,0.67573565]
[1771060669388,13.01663337,2080.3,2079.8,0.67573565]
[1771060669619,0.49276558,2080.2,2079.8,0.001]
[1771060670505,13.50766092,2080.1,2079.8,0.001]
[1771060671087,1.20192307,2080.0,2079.8,0.001]
[1771060673295,1.01081269,2080.0,2079.8,0.001]
[1771060674126,3.47186028,2080.2,2079.8,0.001]
[1771060674441,3.95770914,2080.2,2079.8,0.001]
[1771060674595,0.48982545,2080.1,2079.8,0.001]
[1771060675144,0.48982545,2080.0,2079.8,0.001]
[1771060675505,14.22174567,2080.1,2079.8,0.001]
[1771060675805,14.70984215,2080.1,2079.8,0.001]
[1771060676217,1.2019104,2080.1,2079.8,0.001]
[1771060676402,1.20184193,2080.2,2079.8,0.001]
[1771060676607,14.70971558,2080.3,2079.8,0.001]
[1771060678495,14.2216191,2080.3,2079.8,0.67573565]
[1771060680327,13.50107165,2080.1,2079.8,0.001]
[1771060680829,13.01983527,2079.9,2079.6,0.001]
[1771060681128,2.77153396,2080.0,2079.6,0.001]
[1771060681536,2.292,2080.0,2079.7,0.62221708]
[1771060681715,1.20168705,2080.5,2079.7,0.62221708]
[1771060682032,1.67938653,2080.5,2079.7,0.62221708]
[1771060682205,13.01983527,2080.4,2079.7,0.62221708]
[1771060682407,13.01983527,2080.4,2079.9,0.62221708]
[1771060683422,0.47434463,2080.3,2079.7,0.62221708]
[1771060683622,13.4941799,2080.3,2079.6,1.82536403]
[1771060683824,13.01983527,2080.3,2079.7,0.62221708]
[1771060684138,1.20172077,2080.4,2079.7,0.62221708]
[1771060685242,1.20172077,2080.4,2079.7,1.20205598]
[1771060685536,1.20172077,2080.4,2079.8,0.62221708]
[1771060685733,2.76897762,2080.3,2079.6,1.82536317]
[1771060685915,0.47097762,2080.2,2079.6,1.82536317]
[1771060686114,0.47097762,2080.2,2079.6,0.62321708]
[1771060686519,13.49081289,2080.2,2079.6,1.82536758]
[1771060687111,13.49081289,2080.2,2079.6,0.62321708]
[1771060687309,1.20186529,2080.1,2079.6,0.62321708]
[1771060687740,1.20186529,2080.1,2079.6,1.82537108]
[1771060688033,7.10522124,2080.3,2079.7,0.62221708]
[1771060688034,3.49975351,2080.3,2079.7,0.62221708]
[1771060688407,2.298,2080.3,2079.7,0.62221708]
[1771060688605,3.49975167,2080.3,2079.7,0.62221708]
[1771060689216,2.298,2080.3,2079.7,0.62221708]
[1771060689425,2.298,2080.3,2079.9,0.62221708]
[1771060689651,0.46429951,2080.1,2079.6,1.20314983]
[1771060689818,0.46429951,2080.1,2079.6,1.20314583]
[1771060690416,0.46429951,2080.1,2079.6,0.001]
[1771060691526,1.66621968,2080.1,2079.6,0.001]
[1771060691745,1.20183871,2080.2,2079.6,0.62321708]
[1771060691945,3.4997546,2080.3,2079.6,0.62321708]
[1771060693449,1.2017546,2080.3,2079.6,0.62321708]
[1771060693658,1.6594538,2080.3,2079.7,1.20209645]
[1771060694351,0.4576992,2080.2,2079.6,0.001]
[1771060696261,1.20186529,2080.1,2079.6,0.001]
[1771060697557,1.65466351,2080.1,2079.6,0.001]
[1771060703385,14.67449878,2080.1,2079.6,0.001]
[1771060703679,0.4431199,2080.0,2079.6,0.001]
[1771060705389,1.20198086,2079.9,2079.6,0.001]
[1771060708600,2.319,2080.1,2079.6,0.62321708]
[1771060708963,0.25107347,2080.1,2079.6,0.62321708]
[1771060709287,0.00145,2080.2,2079.6,0.62321708]
[1771060710893,0.00145,2080.2,2079.8,0.62221708]
[1771060711524,0.00145,2080.2,2079.9,0.59721325]
[1771060712173,0.00145,2080.2,2079.7,8.0853097]
[1771060712370,0.42864236,2080.2,2079.7,3.82]
[1771060712594,0.00145,2080.2,2079.8,0.59721325]
[1771060713706,0.00145,2080.2,2079.7,3.82]
[1771060713874,0.42449556,2080.2,2079.6,0.001]
[1771060714576,0.42449556,2080.2,2079.6,0.59821325]
[1771060714778,0.00145,2080.2,2079.6,0.59821325]
[1771060714980,1.20325751,2080.2,2079.6,1.80036632]
[1771060715503,1.62424453,2080.2,2079.6,1.80036565]
[1771060715716,1.20325751,2080.2,2079.7,0.59721325]
[1771060716080,1.62219578,2080.2,2079.6,0.001]
[1771060716411,1.62219578,2080.2,2079.6,1.20315412]
[1771060716613,0.00145,2080.2,2079.7,0.59721325]
[1771060717277,0.00145,2080.2,2079.7,1.79929832]
[1771060717682,0.00145,2080.2,2079.6,0.001]
[1771060717683,0.41631979,2080.2,2079.6,0.001]
[1771060718004,0.41631979,2080.2,2079.6,1.20315318]
[1771060718177,0.41631979,2080.2,2079.6,1.80036643]
[1771060718376,0.00145,2080.2,2079.7,0.59721325]
[1771060719184,0.00145,2080.2,2079.9,0.59721325]
[1771060723006,0.00145,2080.2,2079.6,0.001]
[1771060723007,0.40577659,2080.2,2079.6,0.001]
[1771060723911,0.40235928,2080.1,2079.6,0.001]
[1771060725410,1.20192307,2080.0,2079.6,0.001]
[1771060727180,1.60426791,2080.1,2079.6,0.001]
[1771060728375,1.20190863,2080.1,2079.6,0.001]
[1771060732112,1.58884587,2080.1,2079.6,0.001]
[1771060733710,1.20190863,2080.1,2079.6,0.62266993]
[1771060734103,14.60290561,2080.1,2079.6,0.001]
[1771060737623,0.37757286,2080.0,2079.6,0.001]
[1771060738516,1.20190863,2080.1,2079.6,0.001]
[1771060738820,1.20190863,2080.1,2079.6,0.62266993]
[1771060739523,1.57579234,2080.1,2079.6,0.001]
[1771060740821,7.15679653,2080.2,2079.7,0.62166993]
[1771060740822,3.55130231,2080.2,2079.7,0.62166993]
[1771060741020,2.34945,2080.2,2079.7,0.62166993]
[1771060741193,0.00145,2080.2,2079.9,0.59138648]
[1771060742021,0.0011,2080.4,2080.3,0.59138648]
[1771060743222,0.0011,2080.4,2080.3,1.79313622]
[1771060743921,0.0011,2080.6,2080.4,0.59138648]
[1771060744619,0.0011,2080.6,2080.2,1.79485126]
[1771060744922,0.0011,2080.6,2080.3,0.59138648]
[1771060745238,0.0011,2080.5,2080.3,0.59138648]
[1771060745721,0.0011,2080.5,2080.3,1.79313331]
[1771060745933,0.0011,2080.5,2080.4,0.59138648]
[1771060748505,0.0011,2080.7,2080.5,0.59138648]
[1771060749429,0.0011,2080.9,2080.6,0.59138648]
[1771060749634,0.0011,2081.1,2080.5,0.59138648]
[1771060749927,0.0011,2081.1,2080.7,0.59138648]
[1771060751801,0.0011,2081.1,2080.8,0.59138648]
[1771060754038,0.0011,2081.1,2080.9,0.59138648]
[1771060756109,0.0011,2081.1,2081.0,0.59138648]
[1771060756506,0.0011,2081.4,2081.0,0.59138648]
[1771060756726,0.0011,2081.4,2081.1,0.59138648]
[1771060758011,0.0011,2081.4,2081.3,0.59138648]
[1771060759307,0.0011,2081.6,2081.4,0.59138648]
[1771060759508,0.0011,2081.6,2081.5,0.59138648]
[1771060760039,0.0011,2081.6,2081.5,1.79244341]
[1771060761513,0.0011,2081.6,2081.5,0.59138648]
[1771060761715,0.0011,2081.6,2081.3,1.79255882]
[1771060761947,0.0011,2081.6,2081.4,3.05738648]
[1771060762349,0.0011,2081.6,2081.4,3.66710993]
[1771060763043,0.0011,2081.8,2081.5,0.59138648]
[1771060764068,0.0011,2081.8,2081.6,1.79238571]
[1771060764550,0.0011,2081.8,2081.6,0.59138648]
[1771060764720,0.0011,2081.8,2081.5,1.2010128]
[1771060764923,0.0011,2081.8,2081.5,1.79239928]
[1771060767130,0.0011,2081.8,2081.4,3.66707125]
[1771060767551,0.0011,2081.8,2081.5,2.466]
[1771060768853,0.0011,2081.8,2081.5,4.25840461]
[1771060769865,0.0011,2081.8,2081.6,0.59138648]
[1771060771065,0.0011,2081.9,2081.7,1.20094153]
[1771060771638,0.25196066,2082.3,2081.9,0.59249013]
[1771060771842,0.31956457,2082.7,2082.1,0.59249013]
[1771060772043,0.31956457,2082.7,2082.1,3.05849013]
[1771060772245,0.0011,2082.7,2082.1,3.05849013]
[1771060772839,0.0011,2082.7,2082.2,13.0178301]
[1771060773045,0.0011,2082.7,2082.3,1.20059549]
[1771060773641,0.0011,2082.7,2082.4,3.05849013]
[1771060774070,0.27493456,2082.9,2082.5,0.59249013]
[1771060774447,1.53338752,2083.4,2082.6,13.0178301]
[1771060774649,0.33337885,2083.4,2082.7,2.466]
[1771060775044,0.33337885,2083.4,2082.8,1.20030727]
[1771060775286,0.865,2083.5,2082.8,1.7927974]
[1771060775777,0.865,2083.5,2082.9,0.59249013]
[1771060775974,0.865,2083.5,2083.0,2.466]
[1771060776148,5.15634784,2084.1,2083.1,0.59249013]
[1771060776149,0.69889205,2084.1,2083.1,0.59249013]
[1771060776346,1.55747105,2084.1,2083.3,0.59249013]
[1771060776570,14.57530115,2084.1,2083.4,3.05849013]
[1771060776871,0.35789026,2084.1,2083.4,3.05849013]
[1771060777047,1.55745008,2084.1,2083.5,1.199904]
[1771060777249,1.55745008,2084.1,2083.4,4.25840787]
[1771060777656,0.35789026,2084.1,2083.5,0.59249013]
[1771060778056,0.35789026,2084.1,2083.6,0.59249013]
[1771060778371,1.53713158,2084.4,2083.6,0.59249013]
[1771060779059,1.53713158,2084.4,2083.7,1.19978883]
[1771060780282,1.53713158,2084.4,2083.6,1.79229373]
[1771060782278,1.19942366,2084.4,2083.7,0.5541797]
[1771060782481,0.33092796,2084.6,2083.7,0.5541797]
[1771060782651,1.20033865,2084.7,2083.7,0.5541797]
[1771060783181,1.20033865,2084.7,2083.9,0.5541797]
[1771060783182,0.0011,2084.7,2083.9,0.5541797]
[1771060783361,0.0011,2084.7,2084.1,0.5541797]
[1771060783898,0.32770972,2084.6,2084.0,0.5]
[1771060784187,0.32770972,2084.6,2083.6,1.75402603]
[1771060784386,0.32770972,2084.6,2083.7,0.5541797]
[1771060784746,0.32610902,2084.5,2083.1,0.5541797]
[1771060784974,0.32610902,2084.3,2083.1,2.7431797]
[1771060785556,0.32610902,2084.1,2083.1,1.20009522]
[1771060786677,0.32610902,2084.1,2083.1,1.75427492]
[1771060786880,1.52242524,2084.2,2083.2,0.5541797]
[1771060787552,3.52842834,2084.4,2083.4,0.5541797]
[1771060787969,5.1185219,2084.6,2083.4,0.5541797]
[1771060788251,0.32134008,2084.5,2083.4,0.5541797]
[1771060788449,0.0011,2084.7,2083.6,0.5541797]
[1771060788765,1.52007835,2084.7,2083.8,0.5541797]
[1771060789182,1.52007835,2084.7,2083.9,0.5541797]
[1771060789583,1.200317,2084.7,2084.0,1.19961612]
[1771060789876,0.0011,2084.7,2084.1,0.5541797]
[1771060791570,0.0011,2084.7,2084.2,1.7536807]
[1771060791760,0.0011,2084.7,2084.1,4.79805552]
[1771060791761,0.0011,2084.7,2084.0,0.5541797]
[1771060793687,0.31304789,2084.7,2083.7,1.19975006]
[1771060794559,0.31304789,2084.7,2083.7,1.75392976]
[1771060795674,1.50813003,2084.6,2083.7,1.19978335]
[1771060795867,1.50813003,2084.6,2083.7,1.75396305]
[1771060796360,1.50813003,2084.6,2083.8,0.5541797]
[1771060796361,1.19927084,2084.6,2083.8,0.5541797]
[1771060797058,1.20035672,2084.7,2083.8,0.5541797]
[1771060797264,0.30732256,2084.6,2083.7,1.19978335]
[1771060797589,1.20035672,2084.7,2083.9,1.19967368]
[1771060797805,1.20035672,2084.7,2084.0,0.5541797]
[1771060798099,1.20035672,2084.7,2083.7,1.19973661]
[1771060798100,0.30579102,2084.6,2083.7,1.19973661]
[1771060798590,0.30579102,2084.6,2083.7,1.75391631]
[1771060799286,0.30579102,2084.6,2083.8,0.5541797]
[1771060799594,1.20035672,2084.7,2083.8,0.5541797]
[1771060799967,1.20035672,2084.7,2083.8,1.75390489]
[1771060800168,1.50309978,2084.7,2083.8,1.75390489]
[1771060800363,0.30274306,2084.5,2083.4,0.5541797]
[1771060800893,0.30274306,2084.5,2083.2,0.5541797]
[1771060801393,1.50007178,2084.7,2083.4,0.57393901]
[1771060801759,1.20035672,2084.7,2083.4,0.57393901]
[1771060801966,1.20035672,2084.7,2083.6,0.57393901]
[1771060803786,1.49686214,2084.7,2083.6,0.57393901]
[1771060803989,1.20035672,2084.7,2083.8,0.57393901]
[1771060804384,0.0011,2084.7,2083.8,0.57393901]
[1771060805073,1.20031384,2084.7,2083.8,0.57393901]
[1771060806197,1.20031384,2084.7,2083.9,1.77361269]
[1771060807397,1.20031384,2084.7,2084.0,0.57393901]
[1771060807699,0.0011,2084.7,2084.0,0.57393901]
[1771060808267,0.0011,2084.7,2084.2,0.57393901]
[1771060808707,0.0011,2084.7,2084.0,1.77350941]
[1771060809107,0.29018009,2084.7,2083.9,1.19964745]
[1771060809616,0.29018009,2084.7,2083.9,1.77358646]
[1771060809776,0.0011,2084.7,2084.0,0.57393901]
[1771060810330,0.28870912,2084.7,2083.8,1.7736294]
[1771060810479,0.0011,2084.7,2083.9,0.57393901]
[1771060811201,0.28724278,2084.7,2083.9,0.57393901]
[1771060812612,1.19927084,2084.6,2084.0,1.19961612]
[1771060813481,1.20033264,2084.7,2084.1,0.57393901]
[1771060813815,1.20032045,2084.7,2084.1,0.57393901]
[1771060814416,1.20032045,2084.7,2083.9,4.79866747]
[1771060814417,1.48209163,2084.7,2083.9,0.57393901]
[1771060814592,1.48209163,2084.7,2083.9,1.77360679]